[Event "Slovakia Open Piestany-A 2022"]
[Site "Piestany"]
[Date "2022.07.13"]
[Round "4.2"]
[White "Omelja, Artem"]
[Black "Donchenko, Alexander"]
[Result "1-0"]
[ECO "A06"]
[WhiteElo "2478"]
[BlackElo "2640"]
[Annotator "ChessBase"]
[PlyCount "73"]
[EventDate "2022.07.12"]
[EventType "swiss"]
[EventCountry "SVK"]
[SourceTitle "playchess.com"]
[Source "ChessBase"]
[SourceQuality "1"]
[TimeControl "40/5400+30:1800+30"]

1. Nf3 {[%emt 0:01:18]} d5 {[%emt 0:00:15]} 2. e3 {[%emt 0:00:09]} c5 {[%emt 0:00:18]} 3. b3 {[%emt 0:00:27]} Nc6 {[%emt 0:00:24]} 4. Bb2 {[%emt 0:01:54]} a6 {[%emt 0:00:21]} 5. g3 {[%emt 0:02:03]} Nf6 {[%emt 0:00:31]} 6. Bg2 {[%emt 0:00:17]} Bg4 {[%emt 0:00:09]} 7. h3 {[%emt 0:00:33]} Bh5 {[%emt 0:00:06]} 8. g4 {[%emt 0:03:11]} Bg6 {[%emt 0:00:08]} 9. Nh4 {[%emt 0:00:32]} e6 {[%emt 0:09:53]} 10. d3 {[%emt 0:06:43]} Bd6 {[%emt 0:08:05]} 11. Nxg6 {[%emt 0:01:17]} hxg6 {[%emt 0:00:11]} 12. g5 {[%emt 0:01:16]} Ng8 {[%emt 0:17:17]} 13. h4 {[%emt 0:00:10]} Be5 {[%emt 0:00:27]} 14. c3 {[%emt 0:02:27]} Nge7 {[%emt 0:01:14]} 15. Nd2 {[%emt 0:00:27]} d4 {[%emt 0:05:51]} 16. exd4 {[%emt 0:05:30]} cxd4 {[%emt 0:00:09]} 17. c4 {[%emt 0:00:07]} Bf4 {[%emt 0:02:38]} 18. Nf3 {[%emt 0:01:32]} Nf5 {[%emt 0:02:03]} 19. Qe2 {[%emt 0:01:11]} a5 {[%emt 0:07:25]} 20. Qe4 {[%emt 0:00:58]} Bc7 {[%emt 0:06:40]} 21. a3 {[%emt 0:01:03]} Bd6 {[%emt 0:02:00]} 22. Bc1 {[%emt 0:02:36]} Qe7 {[%emt 0:01:39]} 23. Ke2 {[%emt 0:01:35]} Kf8 {[%emt 0:03:42]} 24. Bb2 {[%emt 0:02:50]} Rd8 {[%emt 0:04:33]} 25. Bc1 {[%emt 0:04:56]} Kg8 {[%emt 0:00:30]} 26. Kf1 {[%emt 0:01:17]} Rh7 {[%emt 0:03:50]} 27. Bh3 {[%emt 0:02:49]} Rh8 {[%emt 0:06:53]} 28. Bg4 {[%emt 0:01:59]} Qc7 {[%emt 0:01:56]} 29. Rh3 {[%emt 0:01:50]} Bc5 {[%emt 0:01:40]} 30. Kg2 {[%emt 0:04:37]} Bd6 {[%emt 0:00:33]} 31. Bd2 {[%emt 0:03:52]} Qe7 {[%emt 0:01:30]} 32. Rah1 {[%emt 0:12:54]} Qc7 {[%emt 0:03:56]} 33. h5 {[%emt 0:03:20]} gxh5 {[%emt 0:00:17]} 34. Bxh5 {[%emt 0:00:19]} Qc8 {[%emt 0:04:52]} 35. g6 {[%emt 0:04:53]} f6 {[%emt 0:00:09]} 36. Bg4 {[%emt 0:00:08]} Rxh3 {[%emt 0:00:06]} 37. Bxf5 {[%emt 0:00:36]} 1-0

[Event "Slovakia Open Piestany-A 2022"]
[Site "Piestany"]
[Date "2022.07.15"]
[Round "4.3"]
[White "Piesik, Piotr"]
[Black "Demchenko, Anton"]
[Result "0-1"]
[ECO "A49"]
[WhiteElo "2440"]
[BlackElo "2653"]
[Annotator "ChessBase"]
[PlyCount "222"]
[EventDate "2022.07.12"]
[EventType "swiss"]
[EventCountry "SVK"]
[SourceTitle "playchess.com"]
[Source "ChessBase"]
[SourceQuality "1"]
[TimeControl "40/5400+30:1800+30"]

1. Nf3 {[%emt 0:00:17]} Nf6 {[%emt 0:00:49]} 2. g3 {[%emt 0:00:34]} g6 {[%emt 0:00:34]} 3. Bg2 {[%emt 0:00:05]} Bg7 {[%emt 0:00:04]} 4. O-O {[%emt 0:00:05]} O-O {[%emt 0:00:06]} 5. d4 {[%emt 0:00:04]} d6 {[%emt 0:04:19]} 6. Nbd2 {[%emt 0:01:09]} a5 {[%emt 0:01:48]} 7. e4 {[%emt 0:08:25]} a4 {[%emt 0:00:54]} 8. b4 {[%emt 0:09:34]} e5 {[%emt 0:32:38]} 9. dxe5 {[%emt 0:07:51]} Nfd7 {[%emt 0:01:31]} 10. Rb1 {[%emt 0:01:34]} Nxe5 {[%emt 0:01:12]} 11. Nxe5 {[%emt 0:00:06]} Bxe5 {[%emt 0:01:08]} 12. Nf3 {[%emt 0:01:25]} Bg7 {[%emt 0:00:19]} 13. Bg5 {[%emt 0:03:21]} Qe8 {[%emt 0:03:06]} 14. Qd3 {[%emt 0:04:52]} a3 {[%emt 0:10:09]} 15. Rb3 {[%emt 0:19:21]} Be6 {[%emt 0:00:54]} 16. Rxa3 {[%emt 0:00:25]} Bc4 {[%emt 0:01:05]} 17. Qxc4 {[%emt 0:00:05]} Rxa3 {[%emt 0:00:05]} 18. Qxc7 {[%emt 0:00:06]} Qc6 {[%emt 0:01:51]} 19. Qxc6 {[%emt 0:18:02]} Nxc6 {[%emt 0:00:12]} 20. b5 {[%emt 0:00:03]} Ne5 {[%emt 0:03:29]} 21. Nxe5 {[%emt 0:00:28]} Bxe5 {[%emt 0:00:02]} 22. Rc1 {[%emt 0:01:57]} Rxa2 {[%emt 0:03:42]} 23. Bf1 {[%emt 0:00:10]} Rc8 {[%emt 0:01:22]} 24. Bd3 {[%emt 0:00:04]} Kf8 {[%emt 0:00:12]} 25. Kg2 {[%emt 0:01:28]} Bd4 {[%emt 0:01:25]} 26. Re1 {[%emt 0:01:21]} f6 {[%emt 0:01:11]} 27. Be3 {[%emt 0:00:56]} Bxe3 {[%emt 0:03:21]} 28. Rxe3 {[%emt 0:00:05]} Rc3 {[%emt 0:04:50]} 29. Re1 {[%emt 0:00:27]} Rca3 {[%emt 0:06:43]} 30. Rb1 {[%emt 0:00:13]} b6 {[%emt 0:00:59]} 31. h4 {[%emt 0:00:32]} Ra1 {[%emt 0:01:51]} 32. Rb4 {[%emt 0:00:06]} Rc3 {[%emt 0:00:14]} 33. Kf3 {[%emt 0:00:44]} Ke7 {[%emt 0:01:17]} 34. Ke3 {[%emt 0:00:07]} Rc5 {[%emt 0:00:40]} 35. Kf3 {[%emt 0:01:36]} h5 {[%emt 0:01:55]} 36. Kg2 {[%emt 0:04:07]} g5 {[%emt 0:00:23]} 37. hxg5 {[%emt 0:01:39]} fxg5 {[%emt 0:00:40]} 38. Kf3 {[%emt 0:00:13]} Rc8 {[%emt 0:03:22]} 39. Kg2 {[%emt 0:01:00]} Ke6 {[%emt 0:05:18]} 40. Rd4 {[%emt 0:00:33]} Rc5 {[%emt 0:01:07]} 41. f4 {[%emt 0:36:18]} Ke7 {[%emt 0:06:28]} 42. f5 {[%emt 0:00:00]} Ra8 {[%emt 0:00:37]} 43. Kf2 {[%emt 0:00:00]} Rh8 {[%emt 0:04:05]} 44. Ra4 {[%emt 0:00:00]} Rc7 {[%emt 0:00:10]} 45. Ra6 {[%emt 0:00:00]} Rb8 {[%emt 0:00:06]} 46. Ra4 {[%emt 0:00:00]} Kf6 {[%emt 0:02:04]} 47. Rd4 {[%emt 0:00:00]} Rd8 {[%emt 0:02:23]} 48. Kg2 {[%emt 0:00:00]} Re7 {[%emt 0:02:40]} 49. Rd5 {[%emt 0:00:00]} Re5 {[%emt 0:11:40]} 50. Rd4 {[%emt 0:00:00]} Rc5 {[%emt 0:00:04]} 51. Ra4 {[%emt 0:00:00]} d5 {[%emt 0:00:14]} 52. exd5 {[%emt 0:00:00]} Rcxd5 {[%emt 0:00:01]} 53. Ra7 {[%emt 0:00:00]} R5d7 {[%emt 0:00:09]} 54. Ra6 {[%emt 0:00:00]} Rb8 {[%emt 0:00:24]} 55. Ra4 {[%emt 0:00:00]} Rh8 {[%emt 0:01:30]} 56. Kh3 {[%emt 0:00:00]} Re8 {[%emt 0:00:24]} 57. Kg2 {[%emt 0:02:08]} Red8 {[%emt 0:04:05]} 58. Ra6 {[%emt 0:00:21]} Rd6 {[%emt 0:00:06]} 59. Ra7 {[%emt 0:00:24]} Rh8 {[%emt 0:04:29]} 60. Rc7 {[%emt 0:01:08]} h4 {[%emt 0:00:43]} 61. Rc4 {[%emt 0:01:03]} Rh6 {[%emt 0:01:05]} 62. Kh3 {[%emt 0:00:50]} hxg3+ {[%emt 0:00:06]} 63. Kxg3 {[%emt 0:00:04]} Rh1 {[%emt 0:00:07]} 64. Rc8 {[%emt 0:00:42]} Rg1+ {[%emt 0:00:05]} 65. Kf3 {[%emt 0:02:38]} g4+ {[%emt 0:01:22]} 66. Kf2 {[%emt 0:00:04]} Rh1 {[%emt 0:00:11]} 67. Kg3 {[%emt 0:00:33]} Rd4 {[%emt 0:01:10]} 68. Rc6+ {[%emt 0:00:19]} Kg5 {[%emt 0:00:01]} 69. Rg6+ {[%emt 0:00:21]} Kh5 {[%emt 0:00:31]} 70. Rxb6 {[%emt 0:00:58]} Rh3+ {[%emt 0:00:00]} 71. Kg2 {[%emt 0:00:04]} Kg5 {[%emt 0:00:06]} 72. Rg6+ {[%emt 0:02:09]} Kf4 {[%emt 0:00:30]} 73. f6 {[%emt 0:00:23]} Rg3+ {[%emt 0:00:00]} 74. Kf2 {[%emt 0:00:12]} Rf3+ {[%emt 0:00:00]} 75. Kg2 {[%emt 0:00:40]} Ke5 {[%emt 0:00:52]} 76. b6 {[%emt 0:01:42]} Rxf6 {[%emt 0:01:23]} 77. Rg5+ {[%emt 0:00:13]} Kd6 {[%emt 0:01:23]} 78. Rb5 {[%emt 0:00:20]} Rf8 {[%emt 0:00:06]} 79. b7 {[%emt 0:00:04]} Kc7 {[%emt 0:00:11]} 80. Kg3 {[%emt 0:01:21]} Rf3+ {[%emt 0:00:24]} 81. Kg2 {[%emt 0:00:05]} Kb8 {[%emt 0:00:28]} 82. Rb6 {[%emt 0:01:36]} Re3 {[%emt 0:00:53]} 83. Kf2 {[%emt 0:01:44]} Rf3+ {[%emt 0:00:44]} 84. Kg2 {[%emt 0:01:26]} Rh3 {[%emt 0:00:50]} 85. Kf2 {[%emt 0:00:38]} Rf4+ {[%emt 0:00:14]} 86. Kg2 {[%emt 0:00:06]} Re3 {[%emt 0:00:15]} 87. Rb5 {[%emt 0:03:21]} g3 {[%emt 0:01:20]} 88. Rf5 {[%emt 0:00:23]} Rh4 {[%emt 0:00:23]} 89. Rf7 {[%emt 0:03:05]} Rh2+ {[%emt 0:00:10]} 90. Kg1 {[%emt 0:00:03]} Rd2 {[%emt 0:00:46]} 91. Ba6 {[%emt 0:01:11]} Re1+ {[%emt 0:00:26]} 92. Rf1 {[%emt 0:00:08]} Rxf1+ {[%emt 0:00:26]} 93. Kxf1 {[%emt 0:00:13]} Rxc2 {[%emt 0:00:30]} 94. Bd3 {[%emt 0:00:12]} Rf2+ {[%emt 0:00:06]} 95. Kg1 {[%emt 0:00:03]} Kxb7 {[%emt 0:00:02]} 96. Be4+ {[%emt 0:00:08]} Kc7 {[%emt 0:00:03]} 97. Bd5 {[%emt 0:00:31]} Kd6 {[%emt 0:00:01]} 98. Bb7 {[%emt 0:00:08]} Ke5 {[%emt 0:00:31]} 99. Bc6 {[%emt 0:00:06]} Kf4 {[%emt 0:00:00]} 100. Bd5 {[%emt 0:00:36]} Rd2 {[%emt 0:00:00]} 101. Bb7 {[%emt 0:00:19]} Rc2 {[%emt 0:00:00]} 102. Bd5 {[%emt 0:00:10]} Rc5 {[%emt 0:00:40]} 103. Bb7 {[%emt 0:00:28]} Kg4 {[%emt 0:00:11]} 104. Be4 {[%emt 0:00:28]} Rb5 {[%emt 0:01:18]} 105. Bc6 {[%emt 0:00:37]} Rb6 {[%emt 0:00:16]} 106. Be4 {[%emt 0:00:20]} Rb2 {[%emt 0:01:02]} 107. Kf1 {[%emt 0:01:52]} Kh3 {[%emt 0:01:36]} 108. Kg1 {[%emt 0:00:04]} g2 {[%emt 0:00:49]} 109. Bc2 {[%emt 0:00:37]} Kg3 {[%emt 0:00:24]} 110. Bd3 {[%emt 0:00:24]} Ra2 {[%emt 0:00:17]} 111. Bb1 {[%emt 0:00:08]} Re2 {[%emt 0:00:10]} 0-1

[Event "Slovakia Open Piestany-A 2022"]
[Site "Piestany"]
[Date "2022.07.13"]
[Round "4.5"]
[White "Niedbala, Bartlomiej"]
[Black "Sahidi, Samir"]
[Result "1/2-1/2"]
[ECO "B12"]
[WhiteElo "2381"]
[BlackElo "2462"]
[Annotator "ChessBase"]
[PlyCount "43"]
[EventDate "2022.07.12"]
[EventType "swiss"]
[EventCountry "SVK"]
[SourceTitle "playchess.com"]
[Source "ChessBase"]
[SourceQuality "1"]
[TimeControl "40/5400+30:1800+30"]

1. e4 {[%emt 0:08:23]} c6 {[%emt 0:01:09]} 2. d4 {[%emt 0:00:27]} d5 {[%emt 0:00:05]} 3. e5 {[%emt 0:00:06]} Bf5 {[%emt 0:00:11]} 4. h4 {[%emt 0:02:33]} h5 {[%emt 0:03:16]} 5. Bd3 {[%emt 0:03:36]} Bxd3 {[%emt 0:01:09]} 6. Qxd3 {[%emt 0:00:08]} e6 {[%emt 0:00:37]} 7. Nf3 {[%emt 0:04:56]} Ne7 {[%emt 0:01:49]} 8. Bg5 {[%emt 0:02:19]} Qa5+ {[%emt 0:06:17]} 9. Nbd2 {[%emt 0:00:39]} Nf5 {[%emt 0:03:22]} 10. O-O {[%emt 0:04:16]} Qa6 {[%emt 0:05:05]} 11. c4 {[%emt 0:08:57]} Nd7 {[%emt 0:03:51]} 12. Qc3 {[%emt 0:03:05]} dxc4 {[%emt 0:06:56]} 13. Nxc4 {[%emt 0:01:38]} g6 {[%emt 0:06:19]} 14. Rac1 {[%emt 0:17:37]} Nb6 {[%emt 0:06:50]} 15. Ne3 {[%emt 0:01:11]} Bg7 {[%emt 0:01:12]} 16. Nd2 {[%emt 0:12:42]} Na4 {[%emt 0:15:04]} 17. Qa3 {[%emt 0:04:45]} Bf8 {[%emt 0:00:47]} 18. b4 {[%emt 0:00:05]} Nc5 {[%emt 0:04:05]} 19. Qc3 {[%emt 0:03:25]} Na4 {[%emt 0:00:16]} 20. Qa3 {[%emt 0:00:36]} Nc5 {[%emt 0:08:01]} 21. Qc3 {[%emt 0:00:09]} Na4 {[%emt 0:00:33]} 22. Qa3 {[%emt 0:19:57]} 1/2-1/2

[Event "Slovakia Open Piestany-A 2022"]
[Site "Piestany"]
[Date "2022.07.13"]
[Round "4.6"]
[White "Neugebauer, Martin"]
[Black "Dixit, Nikhil"]
[Result "1-0"]
[ECO "C13"]
[WhiteElo "2528"]
[BlackElo "2325"]
[Annotator "ChessBase"]
[PlyCount "131"]
[EventDate "2022.07.12"]
[EventType "swiss"]
[EventCountry "SVK"]
[SourceTitle "playchess.com"]
[Source "ChessBase"]
[SourceQuality "1"]
[TimeControl "40/5400+30:1800+30"]

1. e4 {[%emt 0:03:27]} e6 {[%emt 0:01:07]} 2. d4 {[%emt 0:00:15]} d5 {[%emt 0:00:06]} 3. Nc3 {[%emt 0:00:25]} Nf6 {[%emt 0:00:39]} 4. Bg5 {[%emt 0:00:37]} dxe4 {[%emt 0:01:29]} 5. Nxe4 {[%emt 0:01:06]} Be7 {[%emt 0:00:58]} 6. Bxf6 {[%emt 0:00:26]} Bxf6 {[%emt 0:03:28]} 7. Nf3 {[%emt 0:00:36]} Bd7 {[%emt 0:02:06]} 8. Bd3 {[%emt 0:04:04]} Bc6 {[%emt 0:00:48]} 9. c3 {[%emt 0:01:32]} Nd7 {[%emt 0:00:47]} 10. Qe2 {[%emt 0:01:55]} Qe7 {[%emt 0:08:58]} 11. O-O {[%emt 0:07:09]} O-O {[%emt 0:02:14]} 12. b4 {[%emt 0:01:24]} b6 {[%emt 0:06:29]} 13. Rfe1 {[%emt 0:03:49]} g6 {[%emt 0:05:59]} 14. a4 {[%emt 0:06:09]} a5 {[%emt 0:06:39]} 15. b5 {[%emt 0:01:59]} Bb7 {[%emt 0:00:30]} 16. Ned2 {[%emt 0:12:02]} c5 {[%emt 0:10:40]} 17. Be4 {[%emt 0:10:45]} Bxe4 {[%emt 0:02:45]} 18. Qxe4 {[%emt 0:01:28]} cxd4 {[%emt 0:03:25]} 19. cxd4 {[%emt 0:00:16]} Bg7 {[%emt 0:07:04]} 20. Rac1 {[%emt 0:03:18]} Nf6 {[%emt 0:06:07]} 21. Qc6 {[%emt 0:01:57]} Qd8 {[%emt 0:00:32]} 22. Nc4 {[%emt 0:11:47]} Nd5 {[%emt 0:00:51]} 23. Nce5 {[%emt 0:05:53]} Ra7 {[%emt 0:02:23]} 24. Qc2 {[%emt 0:02:19]} Qd6 {[%emt 0:01:15]} 25. Qb1 {[%emt 0:02:20]} Bh6 {[%emt 0:03:21]} 26. Rc6 {[%emt 0:03:03]} Qd8 {[%emt 0:01:13]} 27. h4 {[%emt 0:04:11]} Rb7 {[%emt 0:03:25]} 28. h5 {[%emt 0:00:40]} gxh5 {[%emt 0:07:25]} 29. g3 {[%emt 0:00:49]} Nb4 {[%emt 0:01:01]} 30. Rc3 {[%emt 0:03:02]} f6 {[%emt 0:01:48]} 31. Nc6 {[%emt 0:00:31]} Qd5 {[%emt 0:00:16]} 32. Nxb4 {[%emt 0:02:44]} axb4 {[%emt 0:00:09]} 33. Qxb4 {[%emt 0:00:07]} h4 {[%emt 0:01:33]} 34. Qc4 {[%emt 0:00:11]} hxg3 {[%emt 0:02:10]} 35. fxg3 {[%emt 0:00:08]} Qxc4 {[%emt 0:01:00]} 36. Rxc4 {[%emt 0:00:02]} Kf7 {[%emt 0:00:19]} 37. Rc6 {[%emt 0:00:34]} Re8 {[%emt 0:00:27]} 38. Kf2 {[%emt 0:01:05]} Bf8 {[%emt 0:01:56]} 39. Rh1 {[%emt 0:01:28]} Kg7 {[%emt 0:00:24]} 40. Rhc1 {[%emt 0:00:21]} Bb4 {[%emt 0:01:24]} 41. R1c4 {[%emt 0:31:35]} Ba5 {[%emt 0:30:54]} 42. Ke3 {[%emt 0:01:53]} Rd7 {[%emt 0:01:12]} 43. g4 {[%emt 0:00:00]} h6 {[%emt 0:00:00]} 44. Ke4 {[%emt 0:00:00]} Kf7 {[%emt 0:00:00]} 45. Rc8 {[%emt 0:00:00]} Rxc8 {[%emt 0:00:00]} 46. Rxc8 {[%emt 0:00:00]} Kg6 {[%emt 0:00:00]} 47. Rc6 {[%emt 0:00:00]} Kf7 {[%emt 0:00:00]} 48. Nh4 {[%emt 0:00:00]} Be1 {[%emt 0:00:00]} 49. Nf3 {[%emt 0:00:00]} Ba5 {[%emt 0:00:00]} 50. Nh2 {[%emt 0:00:00]} Re7 {[%emt 0:00:00]} 51. Nf1 {[%emt 0:00:00]} Kg6 {[%emt 0:00:00]} 52. Ne3 {[%emt 0:00:00]} Kg5 {[%emt 0:00:00]} 53. Rc8 {[%emt 0:00:00]} Rg7 {[%emt 0:00:00]} 54. Re8 {[%emt 0:00:00]} h5 {[%emt 0:00:00]} 55. gxh5 {[%emt 0:00:00]} f5+ {[%emt 0:00:00]} 56. Ke5 {[%emt 0:00:00]} f4 {[%emt 0:00:00]} 57. Nc4 {[%emt 0:00:19]} Bb4 {[%emt 0:00:00]} 58. h6 {[%emt 0:02:54]} Rc7 {[%emt 0:00:00]} 59. Nd6 {[%emt 0:02:37]} Kxh6 {[%emt 0:00:00]} 60. Ne4 {[%emt 0:01:05]} f3 {[%emt 0:00:00]} 61. Rxe6+ {[%emt 0:00:17]} Kh5 {[%emt 0:00:00]} 62. Rxb6 {[%emt 0:00:46]} Kg4 {[%emt 0:00:00]} 63. Rg6+ {[%emt 0:00:20]} Kh4 {[%emt 0:00:00]} 64. Rf6 {[%emt 0:00:53]} Re7+ {[%emt 0:00:00]} 65. Kf4 {[%emt 0:00:05]} Kh5 {[%emt 0:00:00]} 66. Ng3+ {[%emt 0:00:06]} 1-0

[Event "Slovakia Open Piestany-A 2022"]
[Site "Piestany"]
[Date "2022.07.13"]
[Round "4.7"]
[White "Gretarsson, Helgi Ass"]
[Black "Pniaczek, Marek"]
[Result "1/2-1/2"]
[ECO "D35"]
[WhiteElo "2472"]
[BlackElo "2312"]
[Annotator "ChessBase"]
[PlyCount "97"]
[EventDate "2022.07.12"]
[EventType "swiss"]
[EventCountry "SVK"]
[SourceTitle "playchess.com"]
[Source "ChessBase"]
[SourceQuality "1"]
[TimeControl "40/5400+30:1800+30"]

1. c4 {[%emt 0:00:02]} e6 {[%emt 0:06:45]} 2. Nc3 {[%emt 0:00:24]} d5 {[%emt 0:00:06]} 3. d4 {[%emt 0:00:04]} Nf6 {[%emt 0:00:03]} 4. cxd5 {[%emt 0:00:08]} exd5 {[%emt 0:00:04]} 5. Bg5 {[%emt 0:00:05]} c6 {[%emt 0:00:08]} 6. e3 {[%emt 0:00:05]} Bd6 {[%emt 0:00:03]} 7. Bd3 {[%emt 0:00:14]} O-O {[%emt 0:00:06]} 8. Qc2 {[%emt 0:00:15]} h6 {[%emt 0:00:04]} 9. Bh4 {[%emt 0:00:02]} Re8 {[%emt 0:00:04]} 10. Nf3 {[%emt 0:00:51]} Be6 {[%emt 0:00:12]} 11. O-O {[%emt 0:01:02]} Nbd7 {[%emt 0:02:11]} 12. Rab1 {[%emt 0:00:40]} a5 {[%emt 0:00:06]} 13. Ne2 {[%emt 0:01:02]} Qb8 {[%emt 0:07:46]} 14. Bg3 {[%emt 0:16:21]} Nh5 {[%emt 0:06:58]} 15. Bxd6 {[%emt 0:16:05]} Qxd6 {[%emt 0:00:04]} 16. Nd2 {[%emt 0:00:34]} Rac8 {[%emt 0:09:14]} 17. Rbc1 {[%emt 0:02:20]} b6 {[%emt 0:03:57]} 18. a3 {[%emt 0:10:43]} c5 {[%emt 0:12:20]} 19. Bb5 {[%emt 0:00:42]} Red8 {[%emt 0:02:07]} 20. Qa4 {[%emt 0:11:01]} Nhf6 {[%emt 0:09:37]} 21. Rfd1 {[%emt 0:04:14]} Bg4 {[%emt 0:03:44]} 22. f3 {[%emt 0:03:03]} Be6 {[%emt 0:03:54]} 23. dxc5 {[%emt 0:09:02]} Nxc5 {[%emt 0:04:28]} 24. Qf4 {[%emt 0:00:14]} Qxf4 {[%emt 0:02:27]} 25. Nxf4 {[%emt 0:00:09]} Bd7 {[%emt 0:07:23]} 26. Bxd7 {[%emt 0:01:43]} Ncxd7 {[%emt 0:00:05]} 27. Nb1 {[%emt 0:00:13]} g5 {[%emt 0:00:51]} 28. Ne2 {[%emt 0:04:08]} Rxc1 {[%emt 0:02:39]} 29. Rxc1 {[%emt 0:00:10]} Re8 {[%emt 0:00:29]} 30. Rc3 {[%emt 0:05:06]} d4 {[%emt 0:01:21]} 31. Nxd4 {[%emt 0:02:12]} Nd5 {[%emt 0:00:04]} 32. Rc1 {[%emt 0:08:41]} Rxe3 {[%emt 0:00:48]} 33. Rd1 {[%emt 0:00:32]} N7f6 {[%emt 0:03:12]} 34. Kf2 {[%emt 0:00:40]} Re8 {[%emt 0:00:51]} 35. Nb5 {[%emt 0:01:46]} Rc8 {[%emt 0:03:22]} 36. N1c3 {[%emt 0:01:17]} Rc5 {[%emt 0:00:18]} 37. Rd2 {[%emt 0:00:59]} Kg7 {[%emt 0:03:17]} 38. g3 {[%emt 0:00:32]} Kg6 {[%emt 0:01:16]} 39. Ke2 {[%emt 0:00:11]} Nxc3+ {[%emt 0:04:11]} 40. Nxc3 {[%emt 0:00:02]} Re5+ {[%emt 0:02:08]} 41. Kd3 {[%emt 0:30:44]} h5 {[%emt 0:07:18]} 42. Kc4 {[%emt 0:00:00]} Rc5+ {[%emt 0:07:01]} 43. Kd4 {[%emt 0:00:00]} Kf5 {[%emt 0:01:52]} 44. Re2 {[%emt 0:00:00]} Nd7 {[%emt 0:02:47]} 45. Nd5 {[%emt 0:00:00]} Rc1 {[%emt 0:00:35]} 46. Ne7+ {[%emt 0:00:00]} Kf6 {[%emt 0:00:02]} 47. Nd5+ {[%emt 0:00:00]} Kf5 {[%emt 0:00:00]} 48. Ne3+ {[%emt 0:00:13]} Kf6 {[%emt 0:00:18]} 49. Nd5+ {[%emt 0:02:12]} 1/2-1/2

[Event "Slovakia Open Piestany-A 2022"]
[Site "Piestany"]
[Date "2022.07.13"]
[Round "4.8"]
[White "Stefansson, Vignir Vatnar"]
[Black "Straka, Jozef"]
[Result "1-0"]
[ECO "A33"]
[WhiteElo "2461"]
[BlackElo "2300"]
[Annotator "ChessBase"]
[PlyCount "74"]
[EventDate "2022.07.12"]
[EventType "swiss"]
[EventCountry "SVK"]
[SourceTitle "playchess.com"]
[Source "ChessBase"]
[SourceQuality "1"]
[TimeControl "40/5400+30:1800+30"]

1. c4 {[%emt 0:07:10]} Nf6 {[%emt 0:00:23]} 2. Nf3 {[%emt 0:00:32]} e6 {[%emt 0:00:42]} 3. g3 {[%emt 0:00:07]} c5 {[%emt 0:01:50]} 4. Bg2 {[%emt 0:00:07]} Nc6 {[%emt 0:01:30]} 5. O-O {[%emt 0:00:52]} a6 {[%emt 0:08:49]} 6. Nc3 {[%emt 0:02:40]} Be7 {[%emt 0:02:58]} 7. d4 {[%emt 0:00:37]} cxd4 {[%emt 0:00:29]} 8. Nxd4 {[%emt 0:00:05]} Qc7 {[%emt 0:04:47]} 9. b3 {[%emt 0:06:55]} O-O {[%emt 0:02:55]} 10. Bb2 {[%emt 0:02:21]} d6 {[%emt 0:08:41]} 11. Rc1 {[%emt 0:01:55]} Nxd4 {[%emt 0:18:36]} 12. Qxd4 {[%emt 0:00:21]} Bd7 {[%emt 0:00:18]} 13. Rfd1 {[%emt 0:00:25]} Rfd8 {[%emt 0:00:58]} 14. h3 {[%emt 0:19:04]} Rab8 {[%emt 0:06:28]} 15. Kh2 {[%emt 0:10:34]} b6 {[%emt 0:14:56]} 16. e4 {[%emt 0:00:45]} Qb7 {[%emt 0:11:05]} 17. b4 {[%emt 0:05:38]} e5 {[%emt 0:07:04]} 18. Qe3 {[%emt 0:02:37]} Be6 {[%emt 0:04:31]} 19. Nd5 {[%emt 0:00:30]} Nxd5 {[%emt 0:00:34]} 20. exd5 {[%emt 0:00:25]} Bf5 {[%emt 0:00:13]} 21. Bxe5 {[%emt 0:05:15]} dxe5 {[%emt 0:00:08]} 22. d6 {[%emt 0:00:05]} Qd7 {[%emt 0:01:15]} 23. dxe7 {[%emt 0:00:27]} Qxe7 {[%emt 0:00:13]} 24. Rxd8+ {[%emt 0:00:07]} Qxd8 {[%emt 0:01:19]} 25. Qxe5 {[%emt 0:00:07]} Be6 {[%emt 0:00:09]} 26. c5 {[%emt 0:05:04]} bxc5 {[%emt 0:00:10]} 27. bxc5 {[%emt 0:00:06]} Rc8 {[%emt 0:01:32]} 28. Rc2 {[%emt 0:01:38]} Qc7 {[%emt 0:00:46]} 29. Qe2 {[%emt 0:01:30]} Qa5 {[%emt 0:00:32]} 30. c6 {[%emt 0:00:41]} h6 {[%emt 0:00:17]} 31. Bf1 {[%emt 0:00:50]} Qf5 {[%emt 0:01:07]} 32. c7 {[%emt 0:00:40]} a5 {[%emt 0:00:28]} 33. Qd3 {[%emt 0:00:49]} Qh5 {[%emt 0:00:44]} 34. Qb5 {[%emt 0:01:34]} Qd1 {[%emt 0:00:19]} 35. Qd3 {[%emt 0:01:12]} Qb1 {[%emt 0:00:41]} 36. Rc6 {[%emt 0:03:24]} Qe1 {[%emt 0:00:21]} 37. Qe2 {[%emt 0:01:03]} Qb1 {[%emt 0:00:00]} 1-0

[Event "Slovakia Open Piestany-A 2022"]
[Site "Piestany"]
[Date "2022.07.13"]
[Round "4.9"]
[White "Sharma Isha"]
[Black "Haring, Filip"]
[Result "1/2-1/2"]
[ECO "B46"]
[WhiteElo "2236"]
[BlackElo "2451"]
[Annotator "ChessBase"]
[PlyCount "97"]
[EventDate "2022.07.12"]
[EventType "swiss"]
[EventCountry "SVK"]
[SourceTitle "playchess.com"]
[Source "ChessBase"]
[SourceQuality "1"]
[TimeControl "40/5400+30:1800+30"]

1. e4 {[%emt 0:01:09]} c5 {[%emt 0:00:15]} 2. Nf3 {[%emt 0:00:05]} e6 {[%emt 0:00:27]} 3. d4 {[%emt 0:00:06]} cxd4 {[%emt 0:00:05]} 4. Nxd4 {[%emt 0:00:02]} a6 {[%emt 0:00:40]} 5. Bd3 {[%emt 0:00:06]} Nc6 {[%emt 0:02:43]} 6. Nxc6 {[%emt 0:00:36]} bxc6 {[%emt 0:00:06]} 7. O-O {[%emt 0:00:35]} d5 {[%emt 0:00:27]} 8. Nc3 {[%emt 0:04:04]} Nf6 {[%emt 0:01:44]} 9. Re1 {[%emt 0:00:07]} Be7 {[%emt 0:02:40]} 10. e5 {[%emt 0:00:12]} Nd7 {[%emt 0:00:22]} 11. Qg4 {[%emt 0:00:05]} g6 {[%emt 0:01:52]} 12. Bh6 {[%emt 0:00:07]} Rb8 {[%emt 0:01:58]} 13. Nd1 {[%emt 0:01:04]} Qa5 {[%emt 0:19:52]} 14. Re2 {[%emt 0:13:13]} Qb4 {[%emt 0:11:21]} 15. Qh3 {[%emt 0:07:45]} Qh4 {[%emt 0:01:44]} 16. Qxh4 {[%emt 0:00:30]} Bxh4 {[%emt 0:00:05]} 17. c3 {[%emt 0:00:25]} c5 {[%emt 0:02:45]} 18. c4 {[%emt 0:00:27]} Nb6 {[%emt 0:12:48]} 19. Ne3 {[%emt 0:02:03]} Be7 {[%emt 0:03:38]} 20. b3 {[%emt 0:12:57]} Bb7 {[%emt 0:09:44]} 21. cxd5 {[%emt 0:04:51]} Nxd5 {[%emt 0:06:42]} 22. Rc1 {[%emt 0:05:26]} Kd7 {[%emt 0:04:12]} 23. Rd2 {[%emt 0:10:28]} Rhd8 {[%emt 0:01:29]} 24. Nc4 {[%emt 0:09:45]} Bc6 {[%emt 0:01:03]} 25. Na5 {[%emt 0:01:15]} Bb5 {[%emt 0:00:31]} 26. Be4 {[%emt 0:00:25]} Kc7 {[%emt 0:01:02]} 27. h3 {[%emt 0:10:14]} Nb4 {[%emt 0:05:22]} 28. a3 {[%emt 0:04:35]} Nd5 {[%emt 0:05:27]} 29. Rdc2 {[%emt 0:05:06]} Kb6 {[%emt 0:00:54]} 30. Bd2 {[%emt 0:00:04]} Rbc8 {[%emt 0:02:53]} 31. Nc4+ {[%emt 0:00:27]} Ka7 {[%emt 0:00:30]} 32. Ba5 {[%emt 0:00:25]} Rd7 {[%emt 0:00:36]} 33. Bxd5 {[%emt 0:00:15]} exd5 {[%emt 0:00:24]} 34. Nb6 {[%emt 0:00:04]} Rcd8 {[%emt 0:00:18]} 35. Nxd7 {[%emt 0:00:59]} Rxd7 {[%emt 0:00:05]} 36. a4 {[%emt 0:01:25]} Bd3 {[%emt 0:00:32]} 37. Ra2 {[%emt 0:05:11]} Bf5 {[%emt 0:00:42]} 38. Bd2 {[%emt 0:01:39]} Be6 {[%emt 0:00:38]} 39. Rb2 {[%emt 0:01:08]} Rb7 {[%emt 0:00:37]} 40. b4 {[%emt 0:00:23]} d4 {[%emt 0:00:36]} 41. b5 {[%emt 0:07:56]} c4 {[%emt 0:14:56]} 42. Bb4 {[%emt 0:00:09]} Bxb4 {[%emt 0:04:07]} 43. Rxb4 {[%emt 0:00:09]} axb5 {[%emt 0:00:07]} 44. axb5 {[%emt 0:02:02]} Kb6 {[%emt 0:00:07]} 45. Rbxc4 {[%emt 0:01:24]} Bxc4 {[%emt 0:00:15]} 46. Rxc4 {[%emt 0:00:02]} Rd7 {[%emt 0:00:08]} 47. Kf1 {[%emt 0:00:07]} Kxb5 {[%emt 0:00:29]} 48. Rc8 {[%emt 0:00:05]} Rd5 {[%emt 0:03:21]} 49. f4 {[%emt 0:02:14]} 1/2-1/2